bitfinex/quotes_SOLUSD_20250418
["timestamp","ask_amount","ask_price","bid_price","bid_amount"]
[1744973893810,0.063,133.55,133.54,20.93895704]
[1744973894012,0.063,133.55,133.54,6.15895704]
[1744973894210,0.063,133.55,133.54,20.93895704]
[1744973895621,0.063,133.55,133.54,49.93431423]
[1744973896920,0.063,133.55,133.54,46.93895704]
[1744973898517,0.063,133.55,133.54,49.93431423]
[1744973899305,0.063,133.55,133.54,46.93895704]
[1744973901306,0.063,133.55,133.54,32.15895704]
[1744973901627,0.063,133.55,133.54,46.93895704]
[1744973902330,0.063,133.55,133.54,20.93895704]
[1744973904125,0.063,133.55,133.54,23.93431423]
[1744973905122,0.063,133.56,133.54,68.9966271]
[1744973905428,0.063,133.56,133.55,30.7947852]
[1744973905634,0.063,133.56,133.55,56.7947852]
[1744973906214,0.063,133.59,133.58,32.15895704]
[1744973907041,0.063,133.61,133.6,26.0]
[1744973907330,0.063,133.61,133.6,46.93895704]
[1744973908127,0.063,133.61,133.6,32.15895704]
[1744973908313,0.063,133.63,133.6,70.07513058]
[1744973908626,0.063,133.64,133.63,26.0]
[1744973908828,0.063,133.64,133.63,32.15895704]
[1744973909030,0.063,133.64,133.63,14.78]
[1744973909237,0.063,133.64,133.63,20.93895704]
[1744973909834,0.063,133.64,133.62,6.15895704]
[1744973910038,0.063,133.64,133.63,14.78]
[1744973911423,0.063,133.64,133.62,14.78]
[1744973912241,0.063,133.64,133.61,9.64778277]
[1744973912539,0.063,133.64,133.62,14.78]
[1744973913010,0.063,133.64,133.61,9.64778277]
[1744973913211,0.063,133.64,133.62,14.78]
[1744973913507,0.063,133.64,133.62,9.64778277]
[1744973913730,0.063,133.64,133.63,9.64778277]
[1744973917027,0.063,133.64,133.62,14.78]
[1744973917028,0.063,133.64,133.62,24.42778277]
[1744973917326,0.063,133.64,133.63,9.64778277]
[1744973917709,0.063,133.64,133.63,24.42778277]
[1744973921311,0.063,133.64,133.63,14.78]
[1744973922313,18.71264886,133.64,133.57,233.26]
[1744973922520,9.64778277,133.63,133.58,9.64778277]
[1744973922839,18.71264886,133.64,133.59,24.42778277]
[1744973923133,0.063,133.64,133.61,9.64778277]
[1744973924346,18.71264886,133.64,133.61,9.64778277]
[1744973924521,18.71264886,133.64,133.6,9.64778277]
[1744973925331,26.1917234,133.63,133.6,9.64778277]
[1744973925534,26.1917234,133.63,133.61,9.64778277]
[1744973926538,26.1917234,133.63,133.6,24.42778277]
[1744973929528,26.1917234,133.63,133.6,14.78]
[1744973929724,26.1917234,133.63,133.6,24.42778277]
[1744973930324,26.1917234,133.63,133.6,9.64778277]
[1744973931228,26.1917234,133.63,133.59,24.42778277]
[1744973931431,28.29743163,133.62,133.57,24.42778277]
[1744973931619,28.29743163,133.62,133.58,9.64778277]
[1744973931824,18.64964886,133.62,133.58,9.64778277]
[1744973932639,26.19564403,133.61,133.6,9.64778277]
[1744973934242,26.1917234,133.63,133.6,9.64778277]
[1744973934448,26.1917234,133.63,133.61,9.64778277]
[1744973938331,26.1917234,133.63,133.6,9.64778277]
[1744973940053,26.1917234,133.63,133.61,9.64778277]
[1744973940239,7.48334954,133.63,133.62,9.64778277]
[1744973940445,7.48334954,133.63,133.62,24.42778277]
[1744973940635,7.48334954,133.63,133.62,14.78]
[1744973941355,7.48334954,133.63,133.61,6.17469262]
[1744973941548,7.48334954,133.63,133.61,20.95469262]
[1744973942154,0.063,133.64,133.61,20.95469262]
[1744973942754,0.063,133.64,133.62,6.17469262]
[1744973952606,0.063,133.64,133.63,30.8734631]
[1744973953157,0.063,133.64,133.63,12.34938524]
[1744973953361,0.063,133.64,133.63,30.8734631]
[1744973955441,0.063,133.64,133.63,6.17469262]
[1744973958365,0.063,133.64,133.63,20.93469262]
[1744973960149,0.063,133.64,133.63,14.76]
[1744973960469,0.063,133.64,133.63,20.93469262]
[1744973969382,0.063,133.64,133.63,45.6334631]
[1744973970477,0.063,133.64,133.63,48.62680291]
[1744973972398,0.063,133.65,133.63,49.05328762]
[1744973972559,0.063,133.65,133.64,6.17469262]
[1744973972872,0.063,133.65,133.64,6.60117733]
[1744973973090,0.063,133.66,133.64,52.60117733]
[1744973973262,0.063,133.66,133.65,6.17469262]
[1744973973457,0.063,133.66,133.65,6.60117733]
[1744973973664,0.063,133.67,133.65,6.17469262]
[1744973973862,0.063,133.67,133.66,32.17469262]
[1744973986791,0.063,133.67,133.66,46.93469262]
[1744974000395,0.063,133.69,133.66,70.35384529]
[1744974000596,0.063,133.69,133.68,6.17469262]
[1744974000893,0.063,133.7,133.68,50.8734631]
[1744974001101,0.063,133.7,133.69,30.8734631]
[1744974001481,0.063,133.7,133.69,6.17469262]
[1744974001980,0.063,133.7,133.69,20.93469262]
[1744974005600,0.063,133.7,133.69,6.17469262]
[1744974005806,0.063,133.7,133.68,14.76]
[1744974006302,0.063,133.7,133.68,20.93469262]
[1744974006479,0.063,133.7,133.68,14.76]
[1744974006683,0.063,133.7,133.68,20.93469262]
[1744974007389,0.063,133.7,133.69,6.17469262]
[1744974010021,0.063,133.7,133.68,20.93469262]
[1744974011412,0.063,133.7,133.67,6.17469262]
[1744974011719,0.063,133.7,133.64,20.0]
[1744974011720,6.23769262,133.7,133.66,14.76]
[1744974012091,18.64964886,133.69,133.66,14.76]
[1744974012303,6.17469262,133.68,133.66,14.76]
[1744974012719,6.17469262,133.69,133.64,6.17469262]
[1744974013218,26.18192698,133.68,133.64,6.17469262]
[1744974013522,26.18192698,133.68,133.64,20.93469262]
[1744974014922,26.18192698,133.68,133.64,6.17469262]
[1744974015130,26.18192698,133.68,133.64,20.93469262]
[1744974015625,26.18192698,133.68,133.64,6.17469262]
[1744974015820,26.18192698,133.68,133.64,20.93469262]
[1744974016414,26.18192698,133.68,133.65,6.17469262]
[1744974018209,18.70137642,133.68,133.66,6.17469262]
[1744974018519,7.47999102,133.69,133.67,6.17469262]
[1744974018718,7.47999102,133.69,133.64,34.76]
[1744974018719,7.47999102,133.69,133.68,6.17469262]
[1744974020824,0.063,133.7,133.68,6.17469262]
[1744974021218,0.063,133.7,133.67,6.17469262]
[1744974021723,0.063,133.7,133.67,20.93469262]
[1744974022226,0.063,133.7,133.67,6.17469262]
[1744974022524,0.063,133.7,133.67,20.93469262]
[1744974022823,26.24101046,133.7,133.68,6.17469262]
[1744974023019,26.24101046,133.7,133.69,6.17469262]
[1744974023412,26.24101046,133.7,133.67,14.76]
[1744974023728,26.24101046,133.7,133.68,6.17469262]
[1744974024326,26.24101046,133.7,133.67,20.93469262]
[1744974024627,26.24101046,133.7,133.68,6.17469262]
[1744974025128,0.063,133.7,133.68,6.17469262]
[1744974025707,0.063,133.7,133.67,20.93469262]
[1744974026330,0.063,133.7,133.67,14.76]
[1744974027431,26.24101046,133.7,133.67,14.76]
[1744974027728,26.24101046,133.7,133.67,20.93469262]
[1744974029729,18.7615789,133.7,133.67,20.93469262]
[1744974032512,18.7615789,133.7,133.67,14.76]
[1744974032711,18.7615789,133.7,133.66,6.17469262]
[1744974033020,18.7615789,133.7,133.66,20.93469262]
[1744974034129,18.7615789,133.7,133.67,6.17469262]
[1744974034318,26.24101046,133.7,133.66,20.93469262]
[1744974035230,63.63816827,133.7,133.66,14.76]
[1744974035430,69.81286089,133.7,133.66,14.76]
[1744974036131,69.81286089,133.7,133.65,14.76]
[1744974036132,24.82434148,133.69,133.65,14.76]
[1744974036328,26.18192698,133.68,133.65,14.76]
[1744974038341,26.18192698,133.68,133.65,20.93469262]
[1744974038732,26.18192698,133.68,133.65,14.76]
[1744974040144,69.75937244,133.68,133.64,6.17469262]
[1744974040344,69.75937244,133.68,133.64,20.93469262]
[1744974041749,63.58467982,133.68,133.65,6.17469262]
[1744974042047,24.82434148,133.67,133.63,0.03]
[1744974042231,18.64964886,133.67,133.63,6.20469262]
[1744974043945,26.18584467,133.66,133.63,6.20469262]
[1744974044333,26.18584467,133.66,133.65,6.17469262]
[1744974044934,7.4816699,133.66,133.65,6.17469262]
[1744974045136,7.48137766,133.67,133.65,6.17469262]
[1744974045337,7.48137766,133.67,133.66,6.17469262]
[1744974046049,0.063,133.7,133.63,24.72877048]
[1744974046230,0.063,133.7,133.67,6.17469262]
[1744974046429,0.063,133.7,133.67,14.76]
[1744974047433,0.063,133.7,133.67,20.93469262]
[1744974047857,0.063,133.7,133.68,6.17469262]
[1744974048252,0.063,133.7,133.67,20.93469262]
[1744974049349,0.063,133.7,133.67,14.76]
[1744974050355,26.24101046,133.7,133.67,14.76]
[1744974052031,32.41570308,133.7,133.67,14.76]
[1744974053852,26.24101046,133.7,133.67,14.76]
[1744974055433,18.7615789,133.7,133.67,20.93469262]
[1744974058059,26.24101046,133.7,133.67,20.93469262]
[1744974060454,18.7615789,133.7,133.68,6.17469262]
[1744974060635,18.7615789,133.7,133.69,6.17469262]
[1744974061543,0.063,133.7,133.69,6.17469262]
[1744974063859,0.063,133.7,133.68,6.17469262]
[1744974067060,0.063,133.7,133.66,6.17469262]
[1744974067369,0.063,133.7,133.67,14.76]
[1744974067947,6.23769262,133.7,133.67,14.76]
[1744974068170,13.65468364,133.69,133.65,6.17469262]
[1744974068350,13.65468364,133.69,133.66,14.76]
[1744974068676,32.3546612,133.69,133.66,14.76]
[1744974069249,6.17469262,133.68,133.66,14.76]
[1744974069444,6.17469262,133.68,133.63,0.03]
[1744974069445,6.17469262,133.67,133.63,0.03]
[1744974069649,6.17469262,133.66,133.63,0.03]
[1744974070049,6.17469262,133.65,133.63,0.03]
[1744974070251,7.48278958,133.64,133.63,0.03]
[1744974071262,13.6574822,133.64,133.62,14.76]
[1744974071652,7.48278958,133.64,133.62,14.76]
[1744974071853,13.6574822,133.64,133.62,14.76]
[1744974072872,7.48278958,133.64,133.62,14.76]
[1744974074870,7.48278958,133.64,133.63,6.17469262]
[1744974076874,26.18192698,133.68,133.63,6.17469262]
[1744974077061,26.18192698,133.68,133.65,6.17469262]
[1744974078472,26.18192698,133.68,133.64,6.17469262]
[1744974078869,6.17469262,133.65,133.6,0.03]
[1744974079068,6.17469262,133.65,133.6,6.20469262]
[1744974079282,18.64964886,133.65,133.61,6.17469262]
[1744974080353,26.18976353,133.64,133.61,6.17469262]
[1744974081878,18.70697395,133.64,133.62,6.17469262]
[1744974082067,18.70697395,133.64,133.63,6.17469262]
[1744974082378,18.70697395,133.64,133.62,6.17469262]
[1744974083278,26.18584467,133.66,133.62,6.17469262]
[1744974084756,69.76888683,133.66,133.6,14.79]
[1744974084962,63.59419421,133.66,133.62,6.17469262]
[1744974085672,69.76888683,133.66,133.61,6.17469262]
[1744974086472,63.59419421,133.66,133.62,6.17469262]
[1744974092890,69.76888683,133.66,133.61,6.17469262]
[1744974093464,24.82434148,133.65,133.61,6.17469262]
[1744974093670,6.17469262,133.64,133.6,14.79]
[1744974094087,24.82434148,133.65,133.6,20.96469262]
[1744974095593,26.18976353,133.64,133.6,20.96469262]
[1744974096896,26.18976353,133.64,133.62,6.17469262]
[1744974097090,26.18976353,133.64,133.63,6.17469262]
[1744974098000,7.47999102,133.69,133.66,26.0]
[1744974098289,7.47999102,133.69,133.68,6.17469262]
[1744974099084,0.063,133.7,133.68,6.17469262]
[1744974099394,0.063,133.7,133.69,6.17469262]
[1744974100399,0.063,133.7,133.67,14.76]
[1744974100692,0.063,133.7,133.67,20.93469262]
[1744974102195,7.54243156,133.7,133.68,6.17469262]
[1744974103191,32.41570308,133.7,133.65,20.93469262]
[1744974103491,32.41570308,133.7,133.65,14.76]
[1744974103492,24.82434148,133.69,133.65,14.76]
[1744974104277,26.18192698,133.68,133.65,14.76]
[1744974110304,26.18192698,133.68,133.65,20.93469262]
[1744974120318,26.18192698,133.68,133.65,14.76]
[1744974123303,26.18192698,133.68,133.65,20.93469262]
[1744974124517,7.48021101,133.69,133.67,6.17469262]
[1744974124701,7.54273242,133.7,133.68,6.17469262]
[1744974124901,7.54273242,133.7,133.69,6.17469262]
[1744974126202,0.063,133.7,133.69,6.17469262]
[1744974133034,0.063,133.7,133.68,6.17469262]
[1744974133213,0.063,133.7,133.68,20.93469262]
[1744974133626,0.063,133.7,133.68,14.76]
[1744974133934,0.063,133.7,133.66,20.93469262]
[1744974134635,26.24101046,133.7,133.66,20.93469262]
[1744974134823,32.41570308,133.7,133.66,14.76]
[1744974135024,6.17469262,133.69,133.66,14.76]
[1744974135345,7.54243156,133.7,133.68,6.17469262]
[1744974135633,7.54243156,133.7,133.69,6.17469262]
[1744974135821,7.54243156,133.7,133.66,14.76]
[1744974136023,7.54243156,133.7,133.68,6.17469262]
[1744974137040,0.063,133.7,133.68,6.17469262]
[1744974138831,0.063,133.7,133.66,6.17469262]
[1744974139037,0.063,133.7,133.67,14.74]
[1744974141536,0.063,133.7,133.67,20.91469262]
[1744974147042,0.063,133.7,133.69,6.17469262]
[1744974148937,0.063,133.7,133.69,35.59317373]
[1744974149134,0.063,133.7,133.69,55.59317373]
[1744974149443,0.063,133.72,133.71,26.0]
[1744974149755,0.063,133.73,133.71,26.0]
[1744974149756,0.063,133.73,133.71,52.17469262]
[1744974150060,0.063,133.75,133.72,20.91469262]
[1744974150232,0.063,133.75,133.74,6.17469262]
[1744974150551,0.063,133.75,133.74,20.91469262]
[1744974150755,0.063,133.75,133.72,26.0]
[1744974150922,0.063,133.75,133.74,6.17469262]
[1744974156233,26.0,133.74,133.67,26.67162565]
[1744974156544,26.0,133.73,133.7,6.17469262]
[1744974156946,26.0,133.73,133.68,14.74]
[1744974156947,18.64964886,133.74,133.72,6.17469262]
[1744974157249,18.64964886,133.74,133.71,6.17469262]
[1744974159951,26.063,133.75,133.72,6.17469262]
[1744974160151,26.063,133.75,133.73,20.91469262]
[1744974161335,0.063,133.75,133.73,20.91469262]
[1744974162754,0.063,133.75,133.74,6.17469262]
[1744974164159,0.063,133.75,133.73,6.17469262]
[1744974164337,0.063,133.75,133.74,14.74]
[1744974164542,0.113653,133.75,133.74,14.74]
[1744974164738,0.113653,133.75,133.74,20.91469262]
[1744974164948,0.113653,133.75,133.74,14.74]
[1744974165430,0.113653,133.75,133.74,20.91469262]
[1744974167136,0.113653,133.75,133.74,6.17469262]
[1744974167352,0.113653,133.75,133.74,20.91469262]
[1744974167933,0.113653,133.75,133.74,14.74]
[1744974170272,0.113653,133.75,133.73,6.17469262]
[1744974170273,0.113653,133.75,133.72,6.17469262]
[1744974170559,0.113653,133.75,133.74,14.74]
[1744974172254,18.76330186,133.75,133.66,233.0]
[1744974172462,0.28432314,133.74,133.69,14.74]
[1744974172642,18.64964886,133.71,133.69,14.74]
[1744974172842,6.17469262,133.73,133.69,14.74]
[1744974172843,18.64964886,133.72,133.69,14.74]
[1744974173258,19.07613357,133.74,133.69,14.74]
[1744974173443,18.64964886,133.72,133.69,14.74]
[1744974174150,18.76330186,133.75,133.7,6.17469262]
[1744974174574,24.93799448,133.75,133.7,6.17469262]
[1744974179256,0.113653,133.75,133.72,6.17469262]
[1744974179468,0.113653,133.75,133.73,6.17469262]
[1744974179673,24.93799448,133.75,133.68,26.063]
[1744974179861,24.93799448,133.75,133.7,6.17469262]
[1744974180566,24.93799448,133.75,133.69,14.74]
[1744974180767,24.93799448,133.75,133.7,6.17469262]
[1744974181174,24.93799448,133.75,133.69,14.74]
[1744974181175,6.17469262,133.73,133.69,14.74]
[1744974183259,18.64964886,133.73,133.69,20.91469262]
[1744974184378,0.113653,133.75,133.7,6.17469262]
[1744974184580,18.64964886,133.74,133.7,6.17469262]
[1744974184781,24.82434148,133.74,133.69,20.91469262]
[1744974185082,6.17469262,133.73,133.69,14.74]
[1744974186093,18.64964886,133.71,133.69,14.74]
[1744974187077,6.17469262,133.73,133.69,14.74]
[1744974187378,19.64964886,133.64,133.63,0.063]
[1744974187582,45.07613357,133.61,133.6,0.03]
[1744974187760,45.07613357,133.61,133.6,1e-08]
[1744974187761,51.25082619,133.61,133.6,1e-08]
[1744974187961,18.64964886,133.6,133.59,1e-08]
[1744974188158,19.07613357,133.6,133.59,1e-08]
[1744974189276,26.56116351,133.6,133.59,1e-08]
[1744974190362,26.1346788,133.6,133.59,1e-08]
[1744974191779,7.48502994,133.6,133.59,9.65516729]
[1744974192972,7.48390959,133.62,133.59,9.65516729]
[1744974193172,7.48390959,133.62,133.61,9.65516728]
[1744974195188,26.18904025,133.65,133.61,9.65516728]
[1744974195383,26.18904025,133.65,133.63,9.65516728]
[1744974197588,26.18904025,133.65,133.62,9.65516728]
[1744974201691,7.48334954,133.63,133.61,15.14]
[1744974201892,26.1917234,133.63,133.6,24.79516728]
[1744974211000,18.64964886,133.62,133.6,24.79516728]
[1744974211303,18.64964886,133.62,133.59,21.31639612]
[1744974212718,7.48446972,133.61,133.59,21.31639612]
[1744974213517,7.48446972,133.61,133.59,1e-08]
[1744974213697,18.64964886,133.6,133.59,1e-08]
[1744974214222,24.82604497,133.6,133.59,1e-08]
[1744974214425,18.64964886,133.6,133.59,1e-08]
[1744974215007,26.1346788,133.6,133.59,1e-08]
[1744974218226,51.45013447,133.6,133.56,0.03]
[1744974218522,18.64964886,133.59,133.57,6.17639611]
[1744974219231,7.48615062,133.58,133.56,6.20639611]
[1744974219802,7.48615062,133.58,133.57,6.17639611]
[1744974221017,26.13579948,133.58,133.56,6.20639611]
[1744974221220,18.64964886,133.58,133.56,0.03]
[1744974221596,18.64964886,133.58,133.56,6.20639611]
[1744974222009,18.64964886,133.58,133.57,6.17639611]
[1744974222323,18.64964886,133.58,133.56,0.03]
[1744974222324,18.64964886,133.58,133.56,6.20639611]
[1744974224225,7.48671108,133.57,133.56,6.20639611]
[1744974226427,26.13579948,133.58,133.56,6.20639611]
[1744974226929,26.13579948,133.58,133.56,0.03]
[1744974227114,26.13579948,133.58,133.56,6.20639611]
[1744974227621,26.13579948,133.58,133.56,0.03]
[1744974228129,44.85117603,133.58,133.56,6.17639611]
[1744974228714,44.85117603,133.58,133.55,0.03]
[1744974229027,0.050653,133.57,133.56,6.17639611]
[1744974229630,0.050653,133.57,133.55,0.03]
[1744974229930,0.050653,133.57,133.55,6.20639611]
[1744974230730,0.050653,133.57,133.55,0.03]
[1744974230933,0.050653,133.57,133.56,6.17639611]
[1744974231309,0.050653,133.57,133.55,0.03]
[1744974231609,0.050653,133.57,133.56,6.17639611]
[1744974232306,0.050653,133.57,133.56,30.88198055]
[1744974232911,0.050653,133.57,133.56,6.17639611]
[1744974233311,0.050653,133.57,133.56,21.31639611]
[1744974238033,0.050653,133.57,133.56,15.14]
[1744974238335,0.050653,133.57,133.55,6.20639611]
[1744974238936,0.050653,133.57,133.55,0.03]
[1744974239139,0.050653,133.57,133.55,6.20639611]
[1744974240116,18.70030186,133.57,133.55,6.20639611]
[1744974241432,18.70030186,133.57,133.55,0.03]
[1744974241610,18.70030186,133.57,133.55,6.20639611]
[1744974242119,7.48727163,133.56,133.55,6.20639611]
[1744974245420,7.48727163,133.56,133.55,0.03]
[1744974245620,7.48727163,133.56,133.55,6.20639611]
[1744974246158,7.48727163,133.56,133.55,0.03]
[1744974246323,7.48727163,133.56,133.55,6.20639611]
[1744974247049,7.48727163,133.56,133.55,0.03]
[1744974247353,7.48727163,133.56,133.55,6.20639611]
[1744974248343,0.050653,133.57,133.55,6.20639611]
[1744974248525,0.050653,133.57,133.56,6.17639611]
[1744974255636,0.050653,133.57,133.55,6.20639611]
[1744974256349,0.050653,133.57,133.56,6.17639611]
[1744974256646,0.050653,133.57,133.55,6.20639611]
[1744974258423,0.050653,133.57,133.56,6.17639611]
[1744974267454,0.050653,133.57,133.56,30.88198055]
[1744974267755,0.050653,133.57,133.56,6.17639611]
[1744974271557,0.050653,133.57,133.56,33.8768892]
[1744974272649,0.050653,133.57,133.56,30.88198055]
[1744974273035,0.050653,133.57,133.56,33.8768892]
[1744974278564,0.050653,133.57,133.56,30.88198055]
[1744974281268,0.050653,133.57,133.56,49.0968892]
[1744974282272,0.050653,133.57,133.56,46.10198055]
[1744974282881,0.050653,133.57,133.56,49.0968892]
[1744974283071,0.050653,133.57,133.56,49.52337391]
[1744974289079,0.050653,133.57,133.56,46.10198055]
[1744974289473,0.050653,133.57,133.56,21.39639611]
[1744974293489,0.050653,133.57,133.56,46.10198055]
[1744974293977,0.050653,133.57,133.56,49.0968892]
[1744974295982,0.050653,133.57,133.56,68.17302277]
[1744974296368,0.050653,133.57,133.56,49.52337391]
[1744974297073,0.050653,133.57,133.56,68.17302277]
[1744974298383,0.050653,133.57,133.56,21.39639611]
[1744974306079,0.050653,133.57,133.56,6.17639611]
[1744974306382,0.050653,133.57,133.56,21.19639611]
[1744974307583,0.050653,133.57,133.55,26.03]
[1744974307884,0.050653,133.57,133.56,21.19639611]
[1744974308484,0.050653,133.57,133.56,15.02]
[1744974308788,0.050653,133.57,133.56,21.19639611]
[1744974312798,0.050653,133.57,133.56,6.17639611]
[1744974312974,0.050653,133.57,133.56,21.19639611]
[1744974313976,6.22704911,133.57,133.55,0.03]
[1744974314178,0.050653,133.57,133.55,0.03]
[1744974316185,6.22704911,133.57,133.55,0.03]
[1744974317171,24.87669797,133.57,133.55,0.03]
[1744974318088,7.48727163,133.56,133.55,0.03]
[1744974319090,26.13692049,133.56,133.55,0.03]
[1744974324393,0.050653,133.57,133.55,6.20639611]
[1744974325510,0.050653,133.57,133.56,6.17639611]
[1744974339113,0.050653,133.57,133.55,0.03]
[1744974343104,0.050653,133.57,133.56,6.17639611]
[1744974346409,0.050653,133.57,133.55,6.20639611]
[1744974348120,0.050653,133.57,133.55,0.03]
[1744974349701,0.050653,133.57,133.55,6.20639611]
[1744974352029,0.050653,133.57,133.55,0.03]
[1744974353412,0.050653,133.57,133.55,6.20639611]
[1744974361823,0.050653,133.57,133.56,6.17639611]
[1744974364925,0.050653,133.57,133.55,6.20639611]
[1744974365231,0.050653,133.57,133.55,0.03]
[1744974368114,0.050653,133.57,133.55,6.20639611]
[1744974371537,0.050653,133.57,133.55,0.03]
[1744974372838,6.17639611,133.56,133.55,0.03]
[1744974374740,13.66366774,133.56,133.55,0.03]
[1744974375534,7.48727163,133.56,133.55,0.03]
[1744974377745,7.48727163,133.56,133.55,6.20639611]
[1744974379452,0.050653,133.57,133.55,21.00639611]
[1744974379631,0.050653,133.57,133.56,6.17639611]
[1744974380255,7.53747976,133.57,133.55,14.83]
[1744974380560,7.53747976,133.57,133.55,21.00639611]
[1744974381852,0.050653,133.57,133.55,14.83]
[1744974387659,0.050653,133.57,133.55,0.03]
[1744974394969,26.0,133.56,133.55,0.03]
[1744974397571,33.48727163,133.56,133.55,0.03]
[1744974401869,7.53736408,133.57,133.55,0.03]
[1744974402075,33.53736408,133.57,133.55,0.03]
[1744974402668,7.53736408,133.57,133.55,0.03]
[1744974403874,0.050653,133.57,133.55,0.03]
[1744974415760,0.050653,133.57,133.55,6.20639611]
[1744974417471,0.050653,133.57,133.55,0.03]
[1744974445713,18.70030186,133.57,133.55,0.03]
[1744974446418,7.48727163,133.56,133.55,0.03]
[1744974448112,18.70030186,133.57,133.56,26.0]
[1744974448113,0.050653,133.57,133.56,26.0]
[1744974448415,0.050653,133.57,133.56,32.17639611]
[1744974449415,0.050653,133.57,133.56,46.95639611]
[1744974452817,0.050653,133.57,133.56,40.78]
[1744974453026,0.050653,133.57,133.56,46.95639611]
[1744974454922,0.050653,133.57,133.56,40.78]
[1744974456824,0.050653,133.57,133.56,14.78]
[1744974468426,0.050653,133.57,133.56,20.95639611]
[1744974491763,0.050653,133.57,133.56,14.78]
[1744974491946,0.050653,133.57,133.56,20.95639611]
[1744974501364,0.050653,133.57,133.56,113.30653806]
[1744974501563,7.54634954,133.63,133.57,0.42648471]
[1744974501760,7.54634954,133.63,133.61,6.17639611]
[1744974501958,7.54634954,133.63,133.61,20.95639611]
[1744974503268,0.063,133.63,133.61,20.95639611]
[1744974510971,0.063,133.63,133.62,6.17639611]
[1744974514574,0.063,133.63,133.59,26.0]
[1744974514870,0.063,133.63,133.62,14.78]
[1744974515254,7.54634954,133.63,133.62,14.78]
[1744974517477,0.063,133.63,133.62,14.78]
[1744974528287,0.063,133.63,133.62,20.95639611]
[1744974532684,0.063,133.63,133.61,6.17639611]
[1744974532876,0.063,133.63,133.62,14.78]
[1744974535475,0.063,133.63,133.62,20.95639611]
[1744974538913,0.063,133.63,133.62,46.95639611]
[1744974539193,0.063,133.63,133.62,50.37644465]
[1744974539592,0.063,133.63,133.62,54.09384541]
[1744974540397,0.063,133.63,133.62,72.74349427]
[1744974544095,0.063,133.63,133.62,78.86052916]
[1744974548301,0.063,133.63,133.62,52.86052916]
[1744974549216,0.063,133.63,133.62,49.86696533]
[1744974550003,0.063,133.63,133.62,52.86052916]
[1744974550303,0.063,133.63,133.62,32.17639611]
[1744974550479,0.063,133.63,133.62,46.93639611]
[1744974550681,0.063,133.63,133.62,14.76]
[1744974551698,0.063,133.63,133.61,233.14]
[1744974551699,6.23939611,133.63,133.61,233.14]
[1744974551892,6.23939611,133.63,133.61,247.9]
[1744974552405,7.48390959,133.62,133.61,247.9]
[1744974555984,7.48390959,133.62,133.61,14.76]
[1744974556384,13.6603057,133.62,133.61,14.76]
[1744974559197,6.23939611,133.63,133.61,14.76]
[1744974560212,26.19368357,133.62,133.58,6.17639611]
[1744974560390,26.19368357,133.62,133.59,14.76]
[1744974562716,32.37007968,133.62,133.59,14.76]
[1744974563713,26.19368357,133.62,133.59,14.76]
[1744974564317,26.19368357,133.62,133.59,20.93639611]
[1744974565918,7.54634954,133.63,133.61,6.17639611]
[1744974566101,7.54634954,133.63,133.62,6.17639611]
[1744974566707,7.54634954,133.63,133.61,6.17639611]
[1744974567018,7.54634954,133.63,133.62,6.17639611]
[1744974568213,0.063,133.63,133.62,6.17639611]
[1744974577122,0.063,133.63,133.62,32.17639611]
[1744974579827,0.063,133.63,133.62,32.60288082]
[1744974580041,0.063,133.63,133.62,80.30202909]
[1744974580531,0.063,133.64,133.63,0.42648471]
[1744974580728,0.063,133.64,133.63,57.30846526]
[1744974581611,0.063,133.68,133.66,26.0]
[1744974581811,0.063,133.68,133.67,20.93639611]
[1744974588839,0.063,133.68,133.67,14.76]
[1744974589220,0.063,133.68,133.67,20.93639611]
[1744974589829,0.063,133.68,133.67,41.36288082]
[1744974590035,0.063,133.68,133.67,44.35532489]
[1744974590212,0.063,133.71,133.67,63.00497375]
[1744974590418,0.063,133.71,133.7,32.60288082]
[1744974591835,0.063,133.71,133.7,78.94988674]